[Event "12th Maria Albulet Memorial 2019"]
[Site "Braila"]
[Date "2019.10.03"]
[Round "3.4"]
[White "Doluhanova, Evgeniya"]
[Black "Mihailova, Alina"]
[Result "1-0"]
[ECO "A06"]
[WhiteElo "2285"]
[BlackElo "1770"]
[Annotator "NA"]
[PlyCount "79"]
[EventDate "2019.10.02"]
[EventType "swiss"]
[EventCountry "ROU"]
[SourceTitle "playchess.com"]
[Source "ChessBase"]
[SourceQuality "1"]
[TimeControl "40/5400+30:900+30"]

1. Nf3 {[%emt 0:00:00]} d5 {[%emt 0:00:00]} 2. b3 {[%emt 0:00:00]} Nf6 {[%emt 0:00:00]} 3. Bb2 {[%emt 0:00:00]} Bf5 {[%emt 0:00:26]} 4. e3 {[%emt 0:00:07]} e6 {[%emt 0:00:08]} 5. Be2 {[%emt 0:01:01]} Bd6 {[%emt 0:01:08]} 6. Nh4 {[%emt 0:00:38]} Bg6 {[%emt 0:00:43]} 7. Nxg6 {[%emt 0:00:05]} hxg6 {[%emt 0:00:08]} 8. h3 {[%emt 0:00:15]} Nbd7 {[%emt 0:00:14]} 9. c4 {[%emt 0:02:02]} c6 {[%emt 0:06:54]} 10. cxd5 {[%emt 0:00:26]} cxd5 {[%emt 0:00:17]} 11. Nc3 {[%emt 0:01:02]} a6 {[%emt 0:00:39]} 12. O-O {[%emt 0:01:49]} O-O {[%emt 0:00:15]} 13. Rc1 {[%emt 0:09:03]} Rc8 {[%emt 0:02:22]} 14. a3 {[%emt 0:00:55]} Qe7 {[%emt 0:03:00]} 15. b4 {[%emt 0:01:22]} b5 {[%emt 0:08:27]} 16. Qb3 {[%emt 0:04:14]} Nb6 {[%emt 0:02:09]} 17. Rc2 {[%emt 0:05:48]} Rc7 {[%emt 0:02:52]} 18. Rb1 {[%emt 0:12:14]} Rfc8 {[%emt 0:04:43]} 19. Bd1 {[%emt 0:00:44]} Nfd7 {[%emt 0:14:26]} 20. Ba1 {[%emt 0:04:25]} Ne5 {[%emt 0:05:50]} 21. a4 {[%emt 0:10:41]} Qd7 {[%emt 0:06:01]} 22. axb5 {[%emt 0:05:30]} axb5 {[%emt 0:00:08]} 23. Be2 {[%emt 0:01:16]} Nec4 {[%emt 0:06:38]} 24. d3 {[%emt 0:01:52]} Ne5 {[%emt 0:00:29]} 25. f4 {[%emt 0:01:18]} Nc6 {[%emt 0:01:02]} 26. Nxb5 {[%emt 0:00:42]} Rb7 {[%emt 0:00:53]} 27. Nxd6 {[%emt 0:02:06]} Qxd6 {[%emt 0:00:11]} 28. Rbc1 {[%emt 0:03:03]} Na7 {[%emt 0:05:34]} 29. Bd4 {[%emt 0:09:30]} Rxc2 {[%emt 0:02:27]} 30. Qxc2 {[%emt 0:08:06]} Qxb4 {[%emt 0:13:13]} 31. Rb1 {[%emt 0:00:32]} Qd6 {[%emt 0:00:39]} 32. Qc5 {[%emt 0:03:41]} Qxc5 {[%emt 0:04:04]} 33. Bxc5 {[%emt 0:00:07]} Nac8 {[%emt 0:00:05]} 34. d4 {[%emt 0:00:22]} Rb8 {[%emt 0:01:37]} 35. Ba6 {[%emt 0:00:39]} Ra8 {[%emt 0:00:12]} 36. Bb7 {[%emt 0:00:17]} Ra7 {[%emt 0:00:18]} 37. Bxc8 {[%emt 0:00:13]} Nxc8 {[%emt 0:00:08]} 38. Bxa7 {[%emt 0:00:05]} Nxa7 {[%emt 0:00:02]} 39. Rb8+ {[%emt 0:00:19]} Kh7 {[%emt 0:00:05]} 40. Rb7 {[%emt 0:00:00]} 1-0

[Event "12th Maria Albulet Memorial 2019"]
[Site "Braila"]
[Date "2019.10.03"]
[Round "3.5"]
[White "Cosman, Andreea-Marioara"]
[Black "Bucur, Denisa-Andreea"]
[Result "1/2-1/2"]
[ECO "E44"]
[WhiteElo "2165"]
[BlackElo "1888"]
[Annotator "NA"]
[PlyCount "30"]
[EventDate "2019.10.02"]
[EventType "swiss"]
[EventCountry "ROU"]
[SourceTitle "playchess.com"]
[Source "ChessBase"]
[SourceQuality "1"]
[TimeControl "40/5400+30:900+30"]

1. d4 {[%emt 0:00:00]} Nf6 {[%emt 0:00:00]} 2. c4 {[%emt 0:00:00]} e6 {[%emt 0:00:00]} 3. Nc3 {[%emt 0:00:00]} Bb4 {[%emt 0:00:00]} 4. e3 {[%emt 0:00:00]} b6 {[%emt 0:00:02]} 5. Nge2 {[%emt 0:00:24]} c5 {[%emt 0:00:15]} 6. a3 {[%emt 0:00:06]} Ba5 {[%emt 0:00:16]} 7. Rb1 {[%emt 0:00:07]} Na6 {[%emt 0:00:13]} 8. Bd2 {[%emt 0:00:06]} O-O {[%emt 0:00:30]} 9. Ng3 {[%emt 0:02:44]} Bb7 {[%emt 0:00:40]} 10. Bd3 {[%emt 0:01:51]} cxd4 {[%emt 0:01:30]} 11. exd4 {[%emt 0:04:35]} Bxc3 {[%emt 0:00:08]} 12. bxc3 {[%emt 0:22:11]} Nc7 {[%emt 0:04:49]} 13. O-O {[%emt 0:03:16]} Qc8 {[%emt 0:02:20]} 14. Bf4 {[%emt 0:07:08]} d5 {[%emt 0:05:34]} 15. Be5 {[%emt 0:09:05]} Nd7 {[%emt 0:20:49]} 1/2-1/2

[Event "12th Maria Albulet Memorial 2019"]
[Site "Braila"]
[Date "2019.10.03"]
[Round "3.6"]
[White "Petrenko, Svetlana"]
[Black "Anghel, Maria"]
[Result "1-0"]
[ECO "B41"]
[WhiteElo "2112"]
[BlackElo "1743"]
[Annotator "NA"]
[PlyCount "103"]
[EventDate "2019.10.02"]
[EventType "swiss"]
[EventCountry "ROU"]
[SourceTitle "playchess.com"]
[Source "ChessBase"]
[SourceQuality "1"]
[TimeControl "40/5400+30:900+30"]

1. e4 {[%emt 0:00:00]} c5 {[%emt 0:00:00]} 2. Nf3 {[%emt 0:00:00]} e6 {[%emt 0:00:00]} 3. d4 {[%emt 0:00:13]} cxd4 {[%emt 0:00:08]} 4. Nxd4 {[%emt 0:00:03]} a6 {[%emt 0:00:12]} 5. c4 {[%emt 0:01:01]} Nf6 {[%emt 0:00:16]} 6. Nc3 {[%emt 0:00:20]} Qc7 {[%emt 0:00:17]} 7. Bd3 {[%emt 0:03:07]} d6 {[%emt 0:00:21]} 8. O-O {[%emt 0:01:26]} g6 {[%emt 0:00:55]} 9. Kh1 {[%emt 0:02:57]} Bg7 {[%emt 0:00:40]} 10. f4 {[%emt 0:06:14]} Nbd7 {[%emt 0:02:03]} 11. Nf3 {[%emt 0:03:47]} O-O {[%emt 0:01:05]} 12. f5 {[%emt 0:06:03]} Nc5 {[%emt 0:12:09]} 13. fxg6 {[%emt 0:13:47]} fxg6 {[%emt 0:09:30]} 14. Bc2 {[%emt 0:00:08]} b6 {[%emt 0:04:22]} 15. Bg5 {[%emt 0:05:08]} Bb7 {[%emt 0:03:37]} 16. Qe2 {[%emt 0:00:42]} Ng4 {[%emt 0:05:41]} 17. h3 {[%emt 0:05:24]} Ne5 {[%emt 0:02:27]} 18. Nxe5 {[%emt 0:00:28]} Bxe5 {[%emt 0:01:54]} 19. Bh6 {[%emt 0:06:53]} Bg7 {[%emt 0:12:47]} 20. Bf4 {[%emt 0:03:47]} Nd7 {[%emt 0:01:36]} 21. Rad1 Ne5 22. Bb3 {[%emt 0:01:15]} Rf6 {[%emt 0:12:50]} 23. Bxe5 {[%emt 0:02:32]} Rxf1+ {[%emt 0:01:02]} 24. Rxf1 {[%emt 0:00:26]} Bxe5 {[%emt 0:00:38]} 25. c5 {[%emt 0:00:47]} Re8 {[%emt 0:07:35]} 26. Qf2 {[%emt 0:07:10]} dxc5 {[%emt 0:03:21]} 27. Bxe6+ {[%emt 0:02:05]} Kh8 {[%emt 0:03:20]} 28. Bd5 {[%emt 0:08:01]} Bg7 29. Qh4 Qe7 {[%emt 0:02:40]} 30. Qxe7 {[%emt 0:04:00]} Rxe7 {[%emt 0:00:07]} 31. Na4 {[%emt 0:03:18]} Bxd5 {[%emt 0:05:14]} 32. exd5 {[%emt 0:00:02]} Rd7 33. Re1 {[%emt 0:02:56]} Bd4 {[%emt 0:03:43]} 34. Nxb6 {[%emt 0:01:48]} Rd6 {[%emt 0:01:26]} 35. Re8+ {[%emt 0:01:47]} Kg7 {[%emt 0:00:06]} 36. Rb8 {[%emt 0:01:29]} h5 {[%emt 0:01:12]} 37. g4 {[%emt 0:03:42]} h4 {[%emt 0:01:27]} 38. g5 {[%emt 0:00:23]} Bf2 {[%emt 0:01:36]} 39. Kg2 {[%emt 0:01:05]} Bg3 {[%emt 0:00:29]} 40. Kf3 {[%emt 0:00:00]} Kf7 {[%emt 0:00:00]} 41. Ke4 {[%emt 0:08:56]} Kg7 {[%emt 0:04:23]} 42. Rb7+ {[%emt 0:00:21]} Kh8 {[%emt 0:02:08]} 43. Nd7 {[%emt 0:01:27]} Kg8 {[%emt 0:01:35]} 44. Nxc5 {[%emt 0:00:36]} Bf2 {[%emt 0:02:21]} 45. b4 Bg3 {[%emt 0:03:39]} 46. Nd7 {[%emt 0:05:04]} Kf7 {[%emt 0:02:09]} 47. Nf6+ {[%emt 0:01:07]} Kf8 {[%emt 0:00:34]} 48. a4 {[%emt 0:00:31]} Be1 {[%emt 0:01:00]} 49. Nd7+ {[%emt 0:00:56]} Ke8 {[%emt 0:01:23]} 50. Ne5 {[%emt 0:00:47]} Bg3 {[%emt 0:01:00]} 51. a5 {[%emt 0:01:17]} Kf8 {[%emt 0:00:42]} 52. Rb6 {[%emt 0:00:40]} 1-0

[Event "12th Maria Albulet Memorial 2019"]
[Site "Braila"]
[Date "2019.10.03"]
[Round "3.7"]
[White "Makropoulou, Marina"]
[Black "Maria, Lia-Alexandra"]
[Result "1-0"]
[ECO "B90"]
[WhiteElo "2201"]
[BlackElo "1602"]
[Annotator "NA"]
[PlyCount "45"]
[EventDate "2019.10.02"]
[EventType "swiss"]
[EventCountry "ROU"]
[SourceTitle "playchess.com"]
[Source "ChessBase"]
[SourceQuality "1"]
[TimeControl "40/5400+30:900+30"]

1. e4 {[%emt 0:00:00]} c5 {[%emt 0:00:00]} 2. Nf3 {[%emt 0:00:56]} d6 {[%emt 0:00:00]} 3. d4 {[%emt 0:00:28]} cxd4 {[%emt 0:00:07]} 4. Nxd4 {[%emt 0:00:42]} Nf6 {[%emt 0:00:13]} 5. Nc3 {[%emt 0:00:11]} a6 {[%emt 0:00:10]} 6. a4 {[%emt 0:00:20]} g6 {[%emt 0:01:03]} 7. Be2 {[%emt 0:06:19]} Bg7 {[%emt 0:01:06]} 8. Bg5 {[%emt 0:06:09]} Nbd7 {[%emt 0:03:37]} 9. Qd2 {[%emt 0:02:21]} Qc7 {[%emt 0:07:59]} 10. O-O {[%emt 0:04:21]} O-O {[%emt 0:00:33]} 11. Kh1 {[%emt 0:00:52]} b6 {[%emt 0:01:20]} 12. Nd5 {[%emt 0:13:26]} Nxd5 {[%emt 0:01:53]} 13. exd5 {[%emt 0:00:08]} Nf6 {[%emt 0:00:45]} 14. Bf3 Bb7 {[%emt 0:10:40]} 15. c4 {[%emt 0:04:08]} Rac8 {[%emt 0:02:15]} 16. Rac1 {[%emt 0:01:23]} Rfe8 {[%emt 0:08:18]} 17. Rfe1 {[%emt 0:06:33]} Qd7 {[%emt 0:10:52]} 18. b3 {[%emt 0:01:34]} Rc7 {[%emt 0:08:30]} 19. Rcd1 {[%emt 0:02:47]} Ng4 {[%emt 0:05:19]} 20. Ne6 {[%emt 0:02:35]} Bc3 {[%emt 0:04:59]} 21. Qxc3 {[%emt 0:00:30]} Nxf2+ {[%emt 0:00:24]} 22. Kg1 {[%emt 0:00:05]} fxe6 {[%emt 0:00:35]} 23. dxe6 1-0

[Event "12th Maria Albulet Memorial 2019"]
[Site "Braila"]
[Date "2019.10.03"]
[Round "3.8"]
[White "Pitigoi, Sabina-Andreea"]
[Black "Paraschiv, Petronela-Alexandra"]
[Result "1/2-1/2"]
[ECO "E12"]
[WhiteElo "1490"]
[BlackElo "1829"]
[Annotator "NA"]
[PlyCount "81"]
[EventDate "2019.10.02"]
[EventType "swiss"]
[EventCountry "ROU"]
[SourceTitle "playchess.com"]
[Source "ChessBase"]
[SourceQuality "1"]
[TimeControl "40/5400+30:900+30"]

1. d4 {[%emt 0:00:00]} e6 {[%emt 0:00:00]} 2. Nf3 {[%emt 0:00:00]} Nf6 {[%emt 0:00:00]} 3. c4 {[%emt 0:00:00]} b6 {[%emt 0:00:00]} 4. a3 {[%emt 0:00:22]} Bb7 {[%emt 0:00:15]} 5. Nc3 {[%emt 0:01:00]} d5 {[%emt 0:01:05]} 6. cxd5 {[%emt 0:01:31]} Nxd5 {[%emt 0:00:34]} 7. Nxd5 {[%emt 0:00:17]} Bxd5 {[%emt 0:00:12]} 8. e3 {[%emt 0:01:18]} c5 {[%emt 0:00:56]} 9. Qa4+ {[%emt 0:09:25]} Qd7 {[%emt 0:01:23]} 10. Qxd7+ {[%emt 0:01:23]} Nxd7 {[%emt 0:00:26]} 11. Bb5 {[%emt 0:01:08]} O-O-O {[%emt 0:00:48]} 12. Ng5 {[%emt 0:02:54]} e5 {[%emt 0:01:44]} 13. e4 {[%emt 0:02:18]} h6 {[%emt 0:01:50]} 14. exd5 {[%emt 0:07:36]} hxg5 {[%emt 0:02:54]} 15. dxc5 {[%emt 0:05:21]} Nxc5 {[%emt 0:01:01]} 16. Bxg5 {[%emt 0:03:00]} f6 {[%emt 0:00:20]} 17. Be3 {[%emt 0:00:57]} Rxd5 {[%emt 0:00:37]} 18. Rc1 {[%emt 0:01:07]} Kb8 {[%emt 0:01:24]} 19. O-O {[%emt 0:01:43]} Be7 {[%emt 0:01:54]} 20. Rfd1 {[%emt 0:03:07]} Rhd8 {[%emt 0:00:12]} 21. Rxd5 {[%emt 0:01:11]} Rxd5 {[%emt 0:00:07]} 22. b4 {[%emt 0:00:55]} Nd3 {[%emt 0:01:44]} 23. Bc4 {[%emt 0:02:15]} Nxc1 {[%emt 0:01:03]} 24. Bxd5 {[%emt 0:00:05]} Ne2+ {[%emt 0:00:23]} 25. Kf1 {[%emt 0:00:07]} Nd4 {[%emt 0:01:33]} 26. Bxd4 {[%emt 0:01:33]} exd4 {[%emt 0:00:05]} 27. Ke2 {[%emt 0:00:22]} a5 {[%emt 0:00:23]} 28. bxa5 {[%emt 0:00:30]} bxa5 {[%emt 0:00:36]} 29. a4 {[%emt 0:00:16]} Bc5 {[%emt 0:00:42]} 30. Kd3 {[%emt 0:00:13]} Kc7 {[%emt 0:00:07]} 31. f4 {[%emt 0:02:19]} Kd6 {[%emt 0:01:41]} 32. Bc4 {[%emt 0:00:39]} g5 {[%emt 0:02:33]} 33. fxg5 {[%emt 0:00:51]} fxg5 {[%emt 0:00:06]} 34. Ke4 {[%emt 0:00:14]} Kc6 {[%emt 0:02:30]} 35. g3 {[%emt 0:02:46]} Bb6 {[%emt 0:02:15]} 36. h4 {[%emt 0:00:48]} gxh4 {[%emt 0:00:04]} 37. gxh4 {[%emt 0:00:03]} Kc5 {[%emt 0:01:00]} 38. Kd3 {[%emt 0:00:28]} Bd8 {[%emt 0:00:05]} 39. h5 {[%emt 0:00:22]} Bg5 {[%emt 0:00:04]} 40. Bb5 {[%emt 0:00:00]} Be3 {[%emt 0:00:00]} 41. Ke4 1/2-1/2

[Event "12th Maria Albulet Memorial 2019"]
[Site "Braila"]
[Date "2019.10.04"]
[Round "4.1"]
[White "Lehaci, Miruna-Daria"]
[Black "Rakhmangulova, Anastasiya"]
[Result "1/2-1/2"]
[ECO "B32"]
[WhiteElo "2131"]
[BlackElo "2186"]
[Annotator "NA"]
[PlyCount "88"]
[EventDate "2019.10.02"]
[EventType "swiss"]
[EventCountry "ROU"]
[SourceTitle "playchess.com"]
[Source "ChessBase"]
[SourceQuality "1"]
[TimeControl "40/5400+30:900+30"]

1. e4 {[%emt 0:00:00]} c5 {[%emt 0:00:00]} 2. Nf3 {[%emt 0:00:00]} Nc6 {[%emt 0:00:00]} 3. d4 {[%emt 0:00:00]} cxd4 {[%emt 0:00:00]} 4. Nxd4 {[%emt 0:00:00]} Qb6 {[%emt 0:00:00]} 5. Nb3 {[%emt 0:04:01]} Nf6 {[%emt 0:00:00]} 6. Nc3 {[%emt 0:01:07]} e6 {[%emt 0:00:03]} 7. Bg5 {[%emt 0:09:04]} Be7 {[%emt 0:04:01]} 8. Qd2 {[%emt 0:01:25]} a6 {[%emt 0:03:25]} 9. f3 {[%emt 0:05:29]} Qc7 {[%emt 0:05:00]} 10. O-O-O {[%emt 0:03:46]} d6 {[%emt 0:13:24]} 11. g4 {[%emt 0:10:01]} b5 {[%emt 0:01:30]} 12. Be3 {[%emt 0:02:34]} b4 {[%emt 0:21:36]} 13. Ne2 {[%emt 0:01:56]} Nd7 {[%emt 0:14:49]} 14. Ned4 {[%emt 0:04:18]} Nxd4 {[%emt 0:01:06]} 15. Qxd4 {[%emt 0:06:09]} a5 {[%emt 0:03:43]} 16. Qc4 {[%emt 0:05:48]} Qxc4 {[%emt 0:12:20]} 17. Bxc4 {[%emt 0:00:05]} O-O {[%emt 0:00:06]} 18. Nd4 {[%emt 0:03:21]} Ne5 {[%emt 0:01:02]} 19. Bb5 {[%emt 0:01:42]} Ba6 {[%emt 0:00:21]} 20. Bf4 {[%emt 0:09:42]} Nxf3 {[%emt 0:05:29]} 21. Bxa6 {[%emt 0:00:48]} Nxd4 {[%emt 0:00:07]} 22. Bd3 {[%emt 0:00:10]} e5 {[%emt 0:02:24]} 23. Be3 {[%emt 0:00:24]} Ne6 {[%emt 0:00:08]} 24. h4 {[%emt 0:02:37]} Rfc8 {[%emt 0:01:21]} 25. b3 {[%emt 0:04:19]} a4 {[%emt 0:01:14]} 26. Bc4 {[%emt 0:00:50]} axb3 {[%emt 0:02:45]} 27. axb3 {[%emt 0:00:04]} Ra1+ {[%emt 0:00:43]} 28. Kb2 {[%emt 0:00:44]} Rxd1 {[%emt 0:02:23]} 29. Rxd1 {[%emt 0:00:03]} Bxh4 {[%emt 0:04:51]} 30. Rxd6 {[%emt 0:00:04]} Nf8 {[%emt 0:00:25]} 31. Bd2 {[%emt 0:02:31]} Rb8 {[%emt 0:00:04]} 32. Rd5 {[%emt 0:00:44]} Be7 {[%emt 0:00:23]} 33. Kc1 {[%emt 0:07:46]} Ng6 {[%emt 0:00:04]} 34. c3 {[%emt 0:01:02]} bxc3 {[%emt 0:01:30]} 35. Bxc3 {[%emt 0:00:03]} Nf4 {[%emt 0:00:37]} 36. Rd7 {[%emt 0:00:46]} Ng6 {[%emt 0:00:28]} 37. Kc2 {[%emt 0:00:59]} Kf8 {[%emt 0:00:07]} 38. b4 {[%emt 0:02:43]} Ke8 {[%emt 0:00:04]} 39. Ra7 {[%emt 0:00:03]} Bxb4 {[%emt 0:00:46]} 40. Bxf7+ {[%emt 0:00:00]} Kf8 {[%emt 0:00:00]} 41. Bxg6 {[%emt 0:02:04]} Bxc3 {[%emt 0:04:19]} 42. Bxh7 {[%emt 0:00:13]} Bd4 {[%emt 0:06:05]} 43. Rc7 {[%emt 0:00:25]} Rb6 {[%emt 0:00:54]} 44. Bf5 {[%emt 0:00:33]} Rb2+ {[%emt 0:01:00]} 1/2-1/2

[Event "12th Maria Albulet Memorial 2019"]
[Site "Braila"]
[Date "2019.10.04"]
[Round "4.2"]
[White "Cosma, Elena-Luminita"]
[Black "Petrenko, Svetlana"]
[Result "1/2-1/2"]
[ECO "D78"]
[WhiteElo "2313"]
[BlackElo "2112"]
[Annotator "NA"]
[PlyCount "87"]
[EventDate "2019.10.02"]
[EventType "swiss"]
[EventCountry "ROU"]
[SourceTitle "playchess.com"]
[Source "ChessBase"]
[SourceQuality "1"]
[TimeControl "40/5400+30:900+30"]

1. d4 {[%emt 0:00:00]} d5 {[%emt 0:00:00]} 2. Nf3 {[%emt 0:00:00]} Nf6 {[%emt 0:00:19]} 3. g3 {[%emt 0:00:00]} g6 {[%emt 0:01:20]} 4. Bg2 {[%emt 0:00:00]} Bg7 {[%emt 0:00:05]} 5. O-O {[%emt 0:00:06]} O-O {[%emt 0:00:40]} 6. c4 {[%emt 0:00:05]} c6 {[%emt 0:01:05]} 7. Nbd2 {[%emt 0:00:29]} Ne4 {[%emt 0:03:37]} 8. e3 {[%emt 0:02:29]} Nxd2 {[%emt 0:07:34]} 9. Bxd2 {[%emt 0:02:11]} dxc4 {[%emt 0:01:35]} 10. Qc2 {[%emt 0:01:01]} b5 {[%emt 0:03:10]} 11. a4 {[%emt 0:00:08]} Bb7 {[%emt 0:05:17]} 12. Rfd1 {[%emt 0:08:25]} Nd7 {[%emt 0:06:12]} 13. Ng5 {[%emt 0:26:56]} a6 {[%emt 0:04:40]} 14. Ne4 {[%emt 0:02:47]} Qc7 {[%emt 0:08:37]} 15. Bb4 {[%emt 0:01:07]} Rfe8 {[%emt 0:08:07]} 16. Qe2 {[%emt 0:05:44]} f5 {[%emt 0:08:19]} 17. Nc5 {[%emt 0:13:33]} Nxc5 {[%emt 0:01:29]} 18. Bxc5 {[%emt 0:00:04]} e5 {[%emt 0:01:18]} 19. axb5 {[%emt 0:07:47]} axb5 {[%emt 0:07:38]} 20. Rxa8 {[%emt 0:00:35]} Rxa8 {[%emt 0:00:41]} 21. dxe5 {[%emt 0:03:16]} Qxe5 {[%emt 0:03:06]} 22. Bd4 {[%emt 0:01:02]} Qe7 {[%emt 0:05:03]} 23. Bxg7 {[%emt 0:00:05]} Kxg7 {[%emt 0:01:14]} 24. Qd2 {[%emt 0:00:50]} Kf7 {[%emt 0:03:18]} 25. Qd4 {[%emt 0:01:47]} Kg8 {[%emt 0:06:07]} 26. h4 {[%emt 0:02:19]} Rc8 {[%emt 0:02:02]} 27. Qb6 {[%emt 0:08:58]} Qc7 {[%emt 0:04:29]} 28. Qc5 {[%emt 0:02:32]} Rd8 {[%emt 0:00:32]} 29. Ra1 {[%emt 0:01:51]} Ra8 {[%emt 0:00:43]} 30. Rd1 {[%emt 0:05:08]} Rd8 {[%emt 0:00:02]} 31. Bd5+ {[%emt 0:01:24]} Kg7 {[%emt 0:00:09]} 32. Rd4 {[%emt 0:00:11]} Kh6 {[%emt 0:04:01]} 33. Bf3 {[%emt 0:00:09]} Rxd4 {[%emt 0:00:22]} 34. exd4 {[%emt 0:00:09]} Qd7 {[%emt 0:00:41]} 35. Qf8+ {[%emt 0:02:01]} Qg7 {[%emt 0:00:02]} 36. Qb8 {[%emt 0:01:34]} Qe7 {[%emt 0:01:14]} 37. Kg2 {[%emt 0:00:26]} Kg7 {[%emt 0:00:34]} 38. Qa7 {[%emt 0:01:05]} Qd7 {[%emt 0:01:08]} 39. Qc5 {[%emt 0:00:30]} h6 {[%emt 0:02:13]} 40. h5 {[%emt 0:00:00]} gxh5 {[%emt 0:00:00]} 41. Kh2 {[%emt 0:03:54]} Qf7 {[%emt 0:04:34]} 42. Kg1 {[%emt 0:01:49]} Qe6 {[%emt 0:05:19]} 43. Bxh5 {[%emt 0:04:39]} Bc8 {[%emt 0:01:07]} 44. Bf3 {[%emt 0:01:16]} 1/2-1/2

[Event "12th Maria Albulet Memorial 2019"]
[Site "Braila"]
[Date "2019.10.04"]
[Round "4.3"]
[White "Navrotescu, Andreea-Cristiana"]
[Black "Doluhanova, Evgeniya"]
[Result "1/2-1/2"]
[ECO "A28"]
[WhiteElo "2241"]
[BlackElo "2285"]
[Annotator "NA"]
[PlyCount "121"]
[EventDate "2019.10.02"]
[EventType "swiss"]
[EventCountry "ROU"]
[SourceTitle "playchess.com"]
[Source "ChessBase"]
[SourceQuality "1"]
[TimeControl "40/5400+30:900+30"]

1. c4 {[%emt 0:01:00]} Nf6 {[%emt 0:00:00]} 2. Nc3 {[%emt 0:00:15]} e5 {[%emt 0:00:00]} 3. Nf3 {[%emt 0:00:04]} Nc6 {[%emt 0:00:00]} 4. e3 {[%emt 0:00:04]} Bb4 {[%emt 0:00:13]} 5. Qc2 {[%emt 0:00:07]} O-O {[%emt 0:00:20]} 6. Nd5 {[%emt 0:00:11]} Be7 {[%emt 0:00:20]} 7. a3 {[%emt 0:00:15]} d6 {[%emt 0:00:40]} 8. Be2 {[%emt 0:00:26]} Nxd5 {[%emt 0:05:24]} 9. cxd5 {[%emt 0:00:03]} Nb8 {[%emt 0:00:06]} 10. d4 {[%emt 0:00:10]} c6 {[%emt 0:03:43]} 11. dxc6 {[%emt 0:11:27]} Nxc6 {[%emt 0:00:25]} 12. d5 {[%emt 0:00:13]} Qa5+ {[%emt 0:04:02]} 13. Qd2 {[%emt 0:00:23]} Qxd2+ {[%emt 0:00:08]} 14. Bxd2 {[%emt 0:05:15]} Nb8 {[%emt 0:00:08]} 15. Rc1 {[%emt 0:10:58]} Nd7 {[%emt 0:00:40]} 16. O-O {[%emt 0:03:41]} Nf6 {[%emt 0:02:51]} 17. Rfd1 {[%emt 0:08:00]} Nxd5 {[%emt 0:02:39]} 18. Ba5 {[%emt 0:01:46]} Be6 {[%emt 0:01:35]} 19. Bc4 {[%emt 0:17:46]} Rfc8 {[%emt 0:02:39]} 20. b3 {[%emt 0:01:13]} b6 {[%emt 0:02:55]} 21. Be1 {[%emt 0:01:07]} Nc7 {[%emt 0:03:45]} 22. Bb4 {[%emt 0:10:56]} b5 {[%emt 0:05:38]} 23. Bxe6 {[%emt 0:01:13]} Nxe6 {[%emt 0:00:11]} 24. Nxe5 {[%emt 0:02:25]} a5 {[%emt 0:01:29]} 25. Nc6 {[%emt 0:00:05]} Rxc6 {[%emt 0:00:16]} 26. Rxc6 {[%emt 0:00:02]} axb4 {[%emt 0:00:09]} 27. axb4 {[%emt 0:00:01]} Rb8 {[%emt 0:01:00]} 28. Rdc1 {[%emt 0:02:45]} Kf8 {[%emt 0:07:26]} 29. Rc8+ {[%emt 0:00:31]} Rxc8 {[%emt 0:00:06]} 30. Rxc8+ {[%emt 0:00:02]} Nd8 {[%emt 0:00:06]} 31. Rb8 {[%emt 0:00:53]} Ke8 {[%emt 0:00:07]} 32. Rxb5 {[%emt 0:00:27]} Kd7 {[%emt 0:00:08]} 33. Rh5 {[%emt 0:03:39]} h6 {[%emt 0:00:56]} 34. Kf1 {[%emt 0:01:42]} Nc6 {[%emt 0:03:33]} 35. b5 {[%emt 0:00:37]} Ne5 {[%emt 0:00:54]} 36. Ke2 {[%emt 0:01:27]} Kc7 {[%emt 0:00:44]} 37. f4 {[%emt 0:04:39]} Ng4 {[%emt 0:03:34]} 38. Rd5 {[%emt 0:01:17]} Nxh2 {[%emt 0:23:24]} 39. Rd4 {[%emt 0:00:03]} Ng4 {[%emt 0:01:18]} 40. Ra4 {[%emt 0:00:00]} Kb6 {[%emt 0:00:00]} 41. Ra6+ {[%emt 0:00:26]} Kb7 {[%emt 0:10:12]} 42. e4 {[%emt 0:00:34]} Nf6 {[%emt 0:05:41]} 43. Kd3 {[%emt 0:03:14]} Ne8 {[%emt 0:02:06]} 44. Kc4 {[%emt 0:05:13]} Nc7 {[%emt 0:00:23]} 45. Ra1 {[%emt 0:04:16]} Kb6 {[%emt 0:01:42]} 46. g4 {[%emt 0:02:12]} Ne6 {[%emt 0:15:08]} 47. Rf1 {[%emt 0:03:10]} Nc5 {[%emt 0:00:25]} 48. Re1 {[%emt 0:04:50]} Nd7 {[%emt 0:05:11]} 49. e5 {[%emt 0:01:08]} dxe5 {[%emt 0:00:30]} 50. fxe5 {[%emt 0:00:01]} Bh4 {[%emt 0:02:17]} 51. Re3 {[%emt 0:01:30]} Kc7 {[%emt 0:01:41]} 52. e6 {[%emt 0:00:22]} Nb6+ {[%emt 0:00:36]} 53. Kd3 {[%emt 0:01:07]} fxe6 {[%emt 0:00:15]} 54. Rxe6 {[%emt 0:00:01]} Bf6 {[%emt 0:00:07]} 55. Rc6+ {[%emt 0:00:55]} Kb7 {[%emt 0:00:06]} 56. Ke4 {[%emt 0:00:06]} Nd7 {[%emt 0:00:40]} 57. Kf5 {[%emt 0:00:55]} Ne5 {[%emt 0:01:27]} 58. Rxf6 {[%emt 0:00:30]} gxf6 {[%emt 0:00:05]} 59. Kxf6 {[%emt 0:00:02]} Nxg4+ {[%emt 0:00:09]} 60. Kg6 {[%emt 0:00:01]} Kb6 {[%emt 0:00:26]} 61. Kh5 {[%emt 0:00:07]} 1/2-1/2